bitfinex-derivatives/quotes_ETHF0:USTF0_20250502
["timestamp","ask_amount","ask_price","bid_price","bid_amount"]
[1746214641724,1.27266812,1843.7,1843.6,6.74486]
[1746214641920,0.42246812,1843.7,1843.6,6.74486]
[1746214642922,1.50674812,1843.7,1843.6,6.74486]
[1746214644325,0.42246812,1843.7,1843.6,6.74486]
[1746214644726,1.50674812,1843.7,1843.6,6.74486]
[1746214645027,0.42246812,1843.7,1843.6,6.74486]
[1746214645524,1.50674812,1843.7,1843.6,6.74486]
[1746214647031,0.42246812,1843.7,1843.6,6.74486]
[1746214647231,1.50674812,1843.7,1843.6,6.74486]
[1746214648733,0.42246812,1843.7,1843.6,6.74486]
[1746214649129,2.71635,1843.8,1843.7,1.08428]
[1746214649533,3.14009672,1843.8,1843.7,1.08428]
[1746214650833,3.14009672,1843.8,1843.7,2.81548]
[1746214651431,2.05584672,1843.8,1843.7,2.81548]
[1746214652330,0.42374672,1843.8,1843.7,2.81548]
[1746214652632,3.58918625,1844.1,1844.0,1.0841]
[1746214652825,3.58918625,1844.1,1844.0,4.2919]
[1746214653332,3.58918625,1844.1,1844.0,6.0231]
[1746214656041,2.78873,1844.3,1844.2,1.08399]
[1746214656338,1.7048,1844.3,1844.2,1.08399]
[1746214656538,2.78873,1844.3,1844.2,1.08399]
[1746214656940,1.08399,1844.2,1844.1,1.084]
[1746214657140,2.81749,1844.2,1844.1,1.08405]
[1746214657738,3.65679,1844.2,1844.1,1.08405]
[1746214658140,2.5728,1844.2,1844.1,1.08405]
[1746214658543,1.7335,1844.2,1844.1,3.57215]
[1746214659839,2.81749,1844.2,1844.1,3.57215]
[1746214660642,1.7335,1844.2,1844.1,3.57215]
[1746214660842,1.8855,1844.4,1844.3,1.08393]
[1746214661146,3.5844,1844.4,1844.3,1.08393]
[1746214663948,2.5005,1844.4,1844.3,1.08393]
[1746214664345,3.58437,1844.4,1844.3,2.83283]
[1746214665650,2.5005,1844.4,1844.3,2.83283]
[1746214666045,1.87584,1844.7,1844.6,1.08375]
[1746214666345,1.08382,1844.6,1844.5,1.08377]
[1746214667143,3.64372,1844.6,1844.5,1.08377]
[1746214670946,1.08381,1844.5,1844.4,41.88382]
[1746214671144,2.67171,1844.5,1844.4,1.08382]
[1746214672354,1.08393,1844.4,1844.3,1.08389]
[1746214672650,2.72193,1844.4,1844.3,1.08389]
[1746214673153,1.638,1844.4,1844.3,1.08389]
[1746214673553,2.72187,1844.4,1844.3,1.08389]
[1746214678155,3.51797,1844.4,1844.3,1.08389]
[1746214680659,1.08404,1844.2,1844.1,1.08398]
[1746214680847,3.49476,1844.3,1844.2,1.08399]
[1746214681053,1.08385,1844.5,1844.2,3.2078]
[1746214681253,1.08387,1844.4,1844.3,1.08388]
[1746214681651,2.70277,1844.4,1844.3,1.08388]
[1746214681851,1.6189,1844.4,1844.3,1.08388]
[1746214682051,2.70277,1844.4,1844.3,2.74658]
[1746214682560,1.6189,1844.4,1844.3,2.74658]
[1746214684158,0.7919,1844.5,1844.4,1.08387]
[1746214684358,1.682,1844.6,1844.5,1.08381]
[1746214684863,4.45848625,1844.7,1844.6,1.08375]
[1746214685253,5.54217625,1844.7,1844.6,2.79155]
[1746214686164,7.22417625,1844.7,1844.6,2.79155]
[1746214688262,3.63499,1844.7,1844.6,2.79155]
[1746214689653,1.08381,1844.6,1844.5,1.08379]
[1746214689962,1.08381,1844.5,1844.4,5.14781]
[1746214690162,2.6785,1844.6,1844.5,1.08381]
[1746214693165,2.6785,1844.6,1844.5,2.69111]
[1746214699173,1.95305,1844.7,1844.6,1.08375]
[1746214699374,1.95305,1844.7,1844.6,2.78635]
[1746214700176,5.54223625,1844.7,1844.6,2.78635]
[1746214701171,7.14223625,1844.7,1844.6,2.78635]
[1746214702276,5.18918625,1844.7,1844.6,2.78635]
[1746214702476,3.58918625,1844.7,1844.6,2.78635]
[1746214702676,4.67287625,1844.7,1844.6,2.78635]
[1746214704474,2.68459,1844.7,1844.6,2.78635]
[1746214711285,1.6009,1844.7,1844.6,2.78635]
[1746214711485,2.68459,1844.7,1844.6,2.78635]
[1746214711783,1.6009,1844.7,1844.6,2.78635]
[1746214713084,2.68459,1844.7,1844.6,2.78635]
[1746214714082,1.6009,1844.7,1844.6,2.78635]
[1746214714382,1.6009,1844.7,1844.6,3.65055]
[1746214714583,5.54918625,1844.8,1844.7,1.08369]
[1746214714785,5.54918625,1844.8,1844.7,3.63959]
[1746214715176,7.18958625,1844.8,1844.7,3.63959]
[1746214716583,3.64680625,1844.8,1844.7,3.63959]
[1746214717987,0.05762,1844.8,1844.7,3.63959]
[1746214722088,4.8482,1844.9,1844.8,1.08363]
[1746214722287,4.8482,1844.9,1844.8,2.78783]
[1746214722789,5.93178,1844.9,1844.8,2.78783]
[1746214723292,4.8482,1844.9,1844.8,2.78783]
[1746214723591,5.93178,1844.9,1844.8,2.78783]
[1746214723785,4.8482,1844.9,1844.8,2.78783]
[1746214728705,3.2078,1844.9,1844.8,2.78783]
[1746214730707,10.29205625,1845.1,1845.0,1.08352]
[1746214731410,1.08352,1845.0,1844.9,1.08352]
[1746214731704,1.08363,1844.9,1844.8,1.08359]
[1746214732107,2.72643,1844.9,1844.8,1.08359]
[1746214732307,1.08375,1844.6,1844.5,4.29159]
[1746214732508,1.08381,1844.5,1844.4,9.15570767]
[1746214732806,1.94871,1844.5,1844.4,9.15570767]
[1746214733605,2.38722183,1844.5,1844.4,9.15570767]
[1746214733807,2.38722183,1844.5,1844.4,12.75829778]
[1746214735508,3.25432183,1844.5,1844.4,11.92029778]
[1746214737005,3.25416894,1844.5,1844.4,1.08383]
[1746214737201,2.38706894,1844.5,1844.4,1.08383]
[1746214737402,2.38706894,1844.5,1844.4,2.71833]
[1746214739313,0.43835894,1844.5,1844.4,2.71833]
[1746214739610,2.67019,1844.6,1844.5,1.08381]
[1746214739810,1.08379,1844.6,1844.5,4.29161]
[1746214742008,1.52202767,1844.6,1844.5,4.29161]
[1746214742312,1.52202767,1844.6,1844.5,1.08381]
[1746214742510,1.08387,1844.5,1844.4,1.08383]
[1746214742913,1.52210767,1844.5,1844.4,1.08383]
[1746214747018,1.08387,1844.5,1844.4,1.08383]
[1746214747218,1.52181833,1844.5,1844.4,1.08383]
[1746214747416,1.52181833,1844.5,1844.4,2.75443]
[1746214752818,0.43794833,1844.5,1844.4,2.75443]
[1746214753019,0.43794833,1844.5,1844.4,3.58533]
[1746214753915,3.58918625,1844.7,1844.4,8.58533]
[1746214754122,3.58918625,1844.7,1844.6,1.08375]
[1746214754418,3.58918625,1844.7,1844.6,4.54575]
[1746214754620,3.58918625,1844.7,1844.6,6.19695]
[1746214754919,3.58918625,1844.8,1844.7,1.08369]
[1746214755122,3.58918625,1844.8,1844.7,6.77359]
[1746214758321,3.53293,1845.0,1844.9,1.08358]
[1746214758818,3.53293,1845.0,1844.9,2.76298]
[1746214760422,1.08358,1844.9,1844.8,1.9012]
[1746214760616,2.73918,1844.9,1844.8,1.9012]
[1746214760817,5.91642,1845.2,1844.8,5.6343]
[1746214761117,3.61382,1845.1,1845.0,1.08348]
[1746214763216,3.61382,1845.1,1845.0,2.80818]
[1746214766125,4.04698416,1845.1,1845.0,2.80818]
[1746214766318,4.04692416,1845.1,1845.0,2.80818]
[1746214769131,4.04683299,1845.1,1845.0,2.80818]
[1746214769631,1.08352,1845.0,1844.9,1.08352]
[1746214769930,3.12039299,1845.0,1844.9,1.08352]
[1746214770822,3.12043892,1845.0,1844.9,1.08352]
[1746214771326,1.08358,1844.9,1844.8,3.2078]
[1746214771529,3.12049892,1844.9,1844.8,3.2078]
[1746214772230,3.12043695,1844.9,1844.8,3.2078]
[1746214772432,3.12043695,1844.9,1844.8,4.29143]
[1746214772635,3.12044963,1844.9,1844.8,4.29143]
[1746214772831,3.12044963,1844.9,1844.8,3.2078]
[1746214773536,1.08369,1844.7,1844.6,9.47713]
[1746214773833,1.51681,1844.7,1844.6,9.47713]
[1746214774135,1.51680941,1844.7,1844.6,9.47713]
[1746214774341,3.11410941,1844.7,1844.6,9.47713]
[1746214775139,3.11410941,1844.7,1844.6,7.75353]
[1746214775635,3.91604259,1844.7,1844.6,7.75353]
[1746214776140,3.48289,1844.7,1844.6,7.75353]
[1746214776340,3.91605552,1844.7,1844.6,7.75353]
[1746214776732,1.08375,1844.6,1844.5,1.08375]
[1746214777035,3.18281552,1844.6,1844.5,1.08375]
[1746214777434,3.18285901,1844.6,1844.5,1.08375]
[1746214778632,3.1829303,1844.6,1844.5,1.08375]
[1746214780139,1.08381,1844.5,1844.4,5.11715]
[1746214780334,3.51791,1844.5,1844.4,5.11715]
[1746214780743,3.95123319,1844.5,1844.4,5.11715]
[1746214781232,3.95133729,1844.5,1844.4,5.11715]
[1746214784243,3.95133729,1844.5,1844.4,4.29165]
[1746214784547,3.95131403,1844.5,1844.4,4.29165]
[1746214784949,3.95131403,1844.5,1844.4,3.2078]
[1746214785543,3.95131403,1844.5,1844.4,4.29167]
[1746214787147,3.51791,1844.5,1844.4,4.29167]
[1746214787349,3.95115112,1844.5,1844.4,4.29167]
[1746214788040,3.51791,1844.5,1844.4,4.29167]
[1746214788235,3.95116498,1844.5,1844.4,4.29167]
[1746214789044,3.95116498,1844.5,1844.4,3.2078]
[1746214789435,1.08405,1844.1,1844.0,45.0919]
[1746214789641,1.51730498,1844.1,1844.0,4.2919]
[1746214790647,3.23160498,1844.1,1844.0,4.2919]
[1746214791046,3.23160498,1844.1,1844.0,5.928]
[1746214791547,3.23160498,1844.1,1844.0,2.7202]
[1746214791749,3.23106173,1844.1,1844.0,2.7202]
[1746214793143,0.43271173,1844.1,1844.0,2.7202]
[1746214794347,1.0841,1844.0,1843.9,0.792]
[1746214794545,3.5877,1844.0,1843.9,1.87616]
[1746214795150,4.02041173,1844.0,1843.9,1.87616]
[1746214795351,1.08422,1843.8,1843.7,46.92854]
[1746214795556,1.51693173,1843.8,1843.7,46.92854]
[1746214797053,1.51642529,1843.8,1843.7,46.92854]
[1746214797643,1.51642529,1843.8,1843.7,43.46854]
[1746214797847,1.51630556,1843.8,1843.7,43.46854]
[1746214798252,1.51630556,1843.8,1843.7,40.8]
[1746214798452,1.08428,1843.7,1843.6,5.12221]
[1746214798652,3.53468,1843.7,1843.6,5.12221]
[1746214798853,3.96676556,1843.7,1843.6,4.0379]
[1746214799048,3.96676556,1843.7,1843.6,5.12224]
[1746214799248,3.96676556,1843.7,1843.6,4.0379]
[1746214799548,3.96676556,1843.7,1843.6,0.8301]
[1746214799955,3.96676556,1843.7,1843.6,1.91444]
[1746214800456,3.96676556,1843.7,1843.6,0.8301]
[1746214800756,3.96676556,1843.7,1843.6,1.91444]
[1746214800952,3.96676556,1843.7,1843.6,2.4214]
[1746214801257,3.96687887,1843.7,1843.6,3.50574]
[1746214801455,3.96687887,1843.7,1843.6,2.4214]
[1746214801656,3.966871,1843.7,1843.6,2.4214]
[1746214802357,3.966871,1843.7,1843.6,3.50574]
[1746214803752,3.966871,1843.7,1843.6,2.4214]
[1746214803962,3.966871,1843.7,1843.6,3.50574]
[1746214804461,3.96679537,1843.7,1843.6,3.50574]
[1746214805058,3.96669793,1843.7,1843.6,3.50574]
[1746214805558,3.53468,1843.7,1843.6,3.50574]
[1746214805756,3.96668114,1843.7,1843.6,3.50574]
[1746214806359,3.96677517,1843.7,1843.6,2.4214]
[1746214806548,3.96677517,1843.7,1843.6,3.50574]
[1746214808059,3.96697188,1843.7,1843.6,3.50574]
[1746214808761,3.96698421,1843.7,1843.6,3.50574]
[1746214809062,3.96698716,1843.7,1843.6,3.50574]
[1746214809562,3.96708512,1843.7,1843.6,3.50574]
[1746214810362,0.43240512,1843.7,1843.6,6.71354]
[1746214811958,2.79868,1844.1,1844.0,1.0841]
[1746214812359,3.23107466,1844.1,1844.0,1.0841]
[1746214813665,3.23123791,1844.1,1844.0,1.0841]
[1746214813864,2.14715791,1844.1,1844.0,1.0841]
[1746214814068,3.23120791,1844.1,1844.0,2.7508]
[1746214814470,3.23129568,1844.1,1844.0,2.7508]
[1746214814865,0.43264568,1844.1,1844.0,2.7508]
[1746214815057,0.43264568,1844.1,1844.0,6.7807]
[1746214815770,1.084,1844.2,1844.1,1.08405]
[1746214815971,3.61057,1844.3,1844.2,1.08399]
[1746214816174,3.61057,1844.3,1844.2,1.91329]
[1746214816769,4.04385745,1844.3,1844.2,1.91329]
[1746214817073,4.04386346,1844.3,1844.2,1.91329]
[1746214817274,4.04386679,1844.3,1844.2,1.91329]
[1746214817974,2.95989679,1844.3,1844.2,1.91329]
[1746214818274,4.04382679,1844.3,1844.2,1.91329]
[1746214818479,0.43329679,1844.3,1844.2,5.12109]
[1746214819579,1.08382,1844.5,1844.4,1.08387]
[1746214819783,1.5168319,1844.5,1844.4,1.08387]
[1746214819980,1.51683194,1844.5,1844.4,1.08387]
[1746214820180,1.51683194,1844.5,1844.4,2.80187]
[1746214820480,1.51682663,1844.5,1844.4,2.80187]
[1746214820982,1.51681908,1844.5,1844.4,2.80187]
[1746214821183,1.51682092,1844.5,1844.4,2.80187]
[1746214821485,1.51682092,1844.5,1844.4,6.00967]
[1746214821983,0.43300092,1844.5,1844.4,6.00967]
[1746214822181,2.66251,1844.6,1844.5,1.08381]
[1746214822483,3.09528205,1844.6,1844.5,1.08381]
[1746214824185,3.09528205,1844.6,1844.5,3.68981]
[1746214824382,3.09506318,1844.6,1844.5,3.68981]
[1746214825777,3.09479942,1844.6,1844.5,3.68981]
[1746214827582,1.08397,1844.3,1844.2,4.29172]
[1746214827782,1.51600354,1844.3,1844.2,1.08392]
[1746214828282,1.08405,1844.1,1844.0,5.09889]
[1746214828483,1.51608354,1844.1,1844.0,5.09889]
[1746214828876,2.35858354,1844.1,1844.0,5.09889]
[1746214829177,2.3581434,1844.1,1844.0,5.09889]
[1746214829779,1.0841,1844.0,1843.9,1.08415]
[1746214829976,3.18598211,1844.0,1843.9,1.08415]
[1746214830180,3.18598146,1844.0,1843.9,1.08415]
[1746214830381,3.18598461,1844.0,1843.9,1.08415]
[1746214830588,3.18597151,1844.0,1843.9,1.08415]
[1746214831093,3.18597896,1844.0,1843.9,1.08415]
[1746214832190,2.7544,1844.0,1843.9,1.08415]
[1746214832384,2.7544,1844.0,1843.9,2.75655]
[1746214832583,3.18605442,1844.0,1843.9,2.75655]
[1746214832783,2.10195442,1844.0,1843.9,2.75655]
[1746214833090,0.43165442,1844.0,1843.9,2.75655]
[1746214833287,0.43165442,1844.0,1843.9,3.59785]
[1746214833686,1.08402,1844.2,1844.1,1.08405]
[1746214833887,1.08402,1844.2,1844.0,1.7193]
[1746214834088,1.08402,1844.2,1844.1,1.08405]
[1746214834289,2.80132,1844.2,1844.1,1.08405]
[1746214834591,1.08405,1844.1,1844.0,2.80337]
[1746214834789,2.80135,1844.1,1844.0,2.80337]
[1746214837593,3.23362573,1844.1,1844.0,2.80337]
[1746214838094,3.23369287,1844.1,1844.0,2.80337]
[1746214838488,3.23369287,1844.1,1844.0,1.7193]
[1746214838687,1.0841,1844.0,1843.9,4.29195]
[1746214838994,4.00324287,1844.0,1843.9,4.29195]
[1746214840494,3.5709,1844.0,1843.9,4.29195]
[1746214840793,4.00343416,1844.0,1843.9,4.29195]
[1746214841196,4.00342081,1844.0,1843.9,4.29195]
[1746214841493,3.5709,1844.0,1843.9,4.29195]
[1746214841689,4.00342629,1844.0,1843.9,4.29195]
[1746214841882,4.00342547,1844.0,1843.9,4.29195]
[1746214844096,3.5709,1844.0,1843.9,4.29195]
[1746214844396,4.00344652,1844.0,1843.9,4.29195]
[1746214845900,4.00340245,1844.0,1843.9,4.29195]
[1746214847290,1.08422,1843.8,1843.7,4.0673]
[1746214847486,1.08434,1843.6,1843.5,1.08436]
[1746214847696,1.0844,1843.5,1843.4,4.29221]
[1746214847897,3.10741227,1843.5,1843.4,45.09221]
[1746214848594,2.675,1843.5,1843.4,46.83241]
[1746214848795,3.10710123,1843.5,1843.4,46.83241]
[1746214849800,3.10715238,1843.5,1843.4,46.83241]
[1746214849991,3.10699866,1843.5,1843.4,46.83241]
[1746214850600,2.02259866,1843.5,1843.4,46.83241]
[1746214850998,3.10699866,1843.5,1843.4,46.83241]
[1746214851205,3.10702586,1843.5,1843.4,46.83241]
[1746214851902,3.1070939,1843.5,1843.4,46.83241]
[1746214852102,2.0226939,1843.5,1843.4,46.83241]
[1746214852601,2.02271462,1843.5,1843.4,46.83241]
[1746214853196,3.10711462,1843.5,1843.4,46.83241]
[1746214853695,2.02271462,1843.5,1843.4,46.83241]
[1746214854404,3.10717967,1843.5,1843.4,46.83241]
[1746214856505,3.10738669,1843.5,1843.4,46.83241]
[1746214856901,2.02298669,1843.5,1843.4,46.83241]
[1746214857205,3.10738669,1843.5,1843.4,46.83241]
[1746214857804,3.10765008,1843.5,1843.4,46.83241]
[1746214859207,3.10761475,1843.5,1843.4,46.83241]
[1746214860206,3.10762286,1843.5,1843.4,46.83241]
[1746214860407,2.02326807,1843.5,1843.4,46.83241]
[1746214861006,0.43266807,1843.5,1843.4,46.83241]
[1746214862808,1.95822,1843.7,1843.6,1.08434]
[1746214863200,2.39102954,1843.7,1843.6,1.08434]
[1746214863402,2.39102954,1843.7,1843.6,1.95604]
[1746214863602,0.43280954,1843.7,1843.6,1.95604]
[1746214863808,0.43280954,1843.7,1843.6,6.01434]
[1746214864103,0.43280954,1843.7,1843.6,7.65514]
[1746214865106,2.5828,1843.8,1843.7,1.08428]
[1746214865307,3.01578111,1843.8,1843.7,2.72508]
[1746214865911,4.10000111,1843.8,1843.7,2.72508]
[1746214866208,4.10000111,1843.8,1843.7,1.08428]
[1746214867109,3.01578111,1843.8,1843.7,1.08428]
[1746214867310,4.10000111,1843.8,1843.7,1.08428]
[1746214867611,3.01578111,1843.8,1843.7,1.08428]
[1746214868108,3.01578111,1843.8,1843.7,3.49488]
[1746214869014,0.43298111,1843.8,1843.7,3.49488]
[1746214870906,1.08416,1843.9,1843.8,1.08422]
[1746214871107,1.51769407,1843.9,1843.8,2.74242]
[1746214871308,0.43353407,1843.9,1843.8,2.74242]
[1746214871509,2.17753407,1843.9,1843.8,5.95022]
[1746214871710,2.17753823,1843.9,1843.8,5.95022]
[1746214872115,5.38533823,1843.9,1843.6,0.8717]
[1746214872409,1.08434,1843.6,1843.5,1.08436]
[1746214872606,1.51787823,1843.6,1843.5,1.08436]
[1746214873213,4.07107823,1843.6,1843.5,1.08436]
[1746214874711,3.63754,1843.6,1843.5,1.08436]
[1746214874916,4.07131584,1843.6,1843.5,1.08436]
[1746214875515,4.07130619,1843.6,1843.5,1.08436]
[1746214875714,1.0844,1843.5,1843.4,5.90793]
[1746214875909,3.24916619,1843.5,1843.4,5.90793]
[1746214876115,3.24916619,1843.5,1843.4,4.29223]
[1746214876616,3.24936297,1843.5,1843.4,4.29223]
[1746214876819,3.2493567,1843.5,1843.4,4.29223]
[1746214877223,3.2493567,1843.5,1843.4,1.08443]
[1746214879419,1.08446,1843.4,1843.3,1.88546]
[1746214879620,1.08452,1843.3,1843.2,48.55234]
[1746214880013,2.69752,1843.3,1843.2,45.09234]
[1746214880208,3.1314767,1843.3,1843.2,45.09234]
[1746214880920,2.69752,1843.3,1843.2,45.09234]
[1746214881108,3.13145361,1843.3,1843.2,45.09234]
[1746214881312,2.04693361,1843.3,1843.2,45.09234]
[1746214881616,3.13145361,1843.3,1843.2,45.09234]
[1746214882019,3.13137342,1843.3,1843.2,45.09234]
[1746214882321,3.13131852,1843.3,1843.2,45.09234]
[1746214883225,0.43379852,1843.3,1843.2,45.09234]
[1746214884216,0.8674,1843.4,1843.3,1.08452]
[1746214884417,1.30116308,1843.4,1843.3,3.65782]
[1746214884617,1.08452,1843.3,1843.2,1.71777]
[1746214884821,2.71149,1843.2,1842.9,7.23913339]
[1746214885121,1.08469,1843.0,1842.9,7.23913339]
[1746214885321,4.29249,1843.0,1842.9,7.23913339]
[1746214885522,11.45245308,1843.0,1842.9,5.95081821]
[1746214885721,14.91145308,1843.0,1842.9,5.95081821]
[1746214887222,1.08475,1842.9,1842.8,10.83646778]
[1746214887427,2.81095,1842.9,1842.8,10.83646778]
[1746214887725,7.81095,1842.9,1842.8,10.83646778]
[1746214888320,7.81095,1842.9,1842.7,3.19824053]
[1746214888321,1.08481,1842.8,1842.7,3.19824053]
[1746214888521,5.93701,1842.8,1842.7,3.19824053]
[1746214888721,10.93701,1842.8,1842.7,3.19824053]
[1746214888922,7.72921,1842.8,1842.7,0.99649053]
[1746214889119,10.93701,1842.8,1842.7,0.99649053]
[1746214889821,1.08493,1842.6,1842.5,0.01352653]
[1746214890021,7.75273,1842.6,1842.5,0.01352653]
[1746214890225,12.75273,1842.6,1842.5,0.01352653]
[1746214890425,14.39713,1842.6,1842.5,0.01352653]
[1746214891122,14.82950838,1842.6,1842.5,0.01352653]
[1746214892526,6.36795263,1842.6,1842.5,0.01352653]
[1746214892724,9.82895263,1842.6,1842.5,0.01352653]
[1746214895541,1.08542,1841.8,1841.7,1.08543]
[1746214896133,1.08593,1840.9,1840.4,25.04448082]
[1746214896332,8.18555263,1840.9,1840.4,25.04448082]
[1746214896529,4.72455263,1840.9,1840.4,25.04448082]
[1746214896731,8.18555263,1840.9,1840.4,26.76468082]
[1746214897036,3.2078,1841.4,1840.8,22.8138276]
[1746214897242,3.2078,1841.3,1840.9,1.648]
[1746214897739,4.2935,1841.3,1841.0,1.08583]
[1746214897937,1.08575,1841.2,1841.1,1.648]
[1746214898242,3.2078,1841.3,1840.9,1.08591]
[1746214898430,3.2078,1841.3,1840.8,1.648]
[1746214898634,3.2078,1841.3,1841.1,1.08579]
[1746214898834,3.2078,1841.3,1841.2,2.73375]
[1746214899133,3.2078,1841.3,1841.0,1.08585]
[1746214899338,3.2078,1841.3,1841.1,1.08581]
[1746214899538,3.2078,1841.3,1841.2,1.648]
[1746214899938,3.2078,1841.3,1841.2,2.73375]
[1746214902236,1.08569,1841.3,1841.2,1.648]
[1746214902438,1.08578,1841.2,1841.0,1.08583]
[1746214902644,1.08581,1841.1,1841.0,1.7279]
[1746214902838,1.08595,1840.9,1840.7,20.6345376]
[1746214903141,1.08599,1840.8,1840.7,21.2764276]
[1746214903337,5.92719,1840.8,1840.7,17.8138276]
[1746214903930,10.92719,1840.8,1840.7,17.8138276]
[1746214904130,10.92719,1840.8,1840.6,15.76063008]
[1746214904335,3.2078,1840.8,1840.2,2.71587]
[1746214904543,1.08611,1840.6,1840.5,1.6954]
[1746214905049,1.08622,1840.5,1840.0,3.655]
[1746214905345,3.2078,1840.7,1840.1,1.6954]
[1746214905541,3.2078,1840.7,1840.6,1.08611]
[1746214905937,1.08599,1840.8,1840.7,1.08605]
[1746214906136,3.2078,1840.9,1840.5,0.8208]
[1746214906335,4.29386,1840.7,1840.6,1.7107]
[1746214906844,4.29386,1840.7,1840.6,2.79681]
[1746214906845,3.2078,1840.7,1840.6,2.79681]
[1746214907045,4.29385,1840.7,1840.6,2.79681]
[1746214907938,4.29385,1840.7,1840.6,1.7107]
[1746214908140,4.29385,1840.7,1840.6,2.79681]
[1746214908346,3.2078,1840.7,1840.6,2.79681]
[1746214908641,1.08604,1840.8,1840.7,1.08605]
[1746214908842,1.08604,1840.8,1840.7,2.79675]
[1746214909545,1.08604,1840.8,1840.7,1.7107]
[1746214912449,2.71525,1840.7,1840.2,0.8208]
[1746214912648,1.0862,1840.5,1840.4,1.7424]
[1746214913245,2.7887,1840.5,1840.4,1.7424]
[1746214914047,1.0862,1840.5,1840.4,1.7424]
[1746214915343,1.0862,1840.5,1840.4,2.82863]
[1746214915550,0.02,1840.9,1840.4,6.7424]
[1746214915749,1.0859,1841.0,1840.9,1.08588]
[1746214916444,1.0859,1841.0,1840.9,2.72388]
[1746214917352,1.08586,1841.1,1841.0,1.08584]
[1746214917648,1.08581,1841.2,1841.1,1.08579]
[1746214917840,1.08587,1841.0,1840.9,4.8458]
[1746214918044,1.08587,1841.0,1840.9,2.72393]
[1746214918246,1.08587,1841.0,1840.9,1.638]
[1746214918443,1.51172217,1841.0,1840.9,1.638]
[1746214919344,1.08587,1841.0,1840.9,1.638]
[1746214919550,1.51193375,1841.0,1840.9,1.638]
[1746214920352,1.08611,1840.6,1840.5,0.8453]
[1746214920648,1.51240468,1840.6,1840.5,0.8453]
[1746214921449,1.08617,1840.5,1840.4,3.2078]
[1746214921752,1.51246468,1840.5,1840.4,4.812]
[1746214922652,1.08634,1840.2,1840.1,4.29417]
[1746214922852,1.51322673,1840.2,1840.1,4.29417]
[1746214923149,1.51322673,1840.2,1840.1,3.2078]
[1746214923351,1.51322673,1840.2,1840.1,4.2942]
[1746214923755,1.51322673,1840.2,1840.1,3.2078]
[1746214924048,1.51382792,1840.2,1840.1,4.812]
[1746214924249,1.51482119,1840.2,1840.1,4.812]
[1746214924449,1.51482567,1840.2,1840.1,1.6042]
[1746214925053,1.51483401,1840.2,1840.1,2.6906]
[1746214925246,0.42849401,1840.2,1840.1,2.6906]
[1746214926357,1.51483401,1840.2,1840.1,2.6906]
[1746214926650,1.51484852,1840.2,1840.1,2.6906]
[1746214927052,0.42850852,1840.2,1840.1,2.6906]
[1746214927754,1.08622,1840.5,1840.4,1.08618]
[1746214927953,1.51471853,1840.5,1840.4,1.08618]
[1746214928447,1.08622,1840.5,1840.4,1.08618]
[1746214928648,1.08623,1840.4,1840.3,1.6058]
[1746214929152,1.51471926,1840.4,1840.3,1.6058]
[1746214929950,1.08623,1840.4,1840.3,1.6058]
[1746214930153,4.29403,1840.4,1840.3,1.6058]
[1746214930346,4.72254863,1840.4,1840.3,1.6058]
[1746214930542,4.29403,1840.4,1840.3,1.6058]
[1746214930752,4.72253789,1840.4,1840.3,1.6058]
[1746214932053,4.72253789,1840.4,1840.3,2.69208]
[1746214932253,1.51499614,1840.4,1840.3,2.69208]
[1746214932554,0.42876614,1840.4,1840.3,2.69208]
[1746214933153,1.51499614,1840.4,1840.3,2.69208]
[1746214933751,1.51506024,1840.4,1840.3,2.69208]
[1746214933953,1.51506005,1840.4,1840.3,2.69208]
[1746214936160,1.51502478,1840.4,1840.3,2.69208]
[1746214937761,0.42879478,1840.4,1840.3,2.69208]
[1746214937961,1.51502478,1840.4,1840.3,2.69208]
[1746214938149,1.51501622,1840.4,1840.3,2.69208]
[1746214938865,1.51501622,1840.4,1840.3,1.6058]
[1746214939263,4.72281622,1840.4,1840.3,1.6058]
[1746214939562,4.72280244,1840.4,1840.3,1.6058]
[1746214939751,4.72279791,1840.4,1840.3,1.6058]
[1746214940156,4.72279791,1840.4,1839.7,1.0866]
[1746214940157,1.08658,1839.8,1839.7,1.0866]
[1746214940362,1.51534791,1839.8,1839.7,1.0866]
[1746214941065,1.08664,1839.7,1839.6,5.13824]
[1746214941256,1.08676,1839.6,1839.5,1.08675]
[1746214941561,0.42876791,1839.7,1839.6,1.0867]
[1746214941761,1.51540791,1839.7,1839.6,1.0867]
[1746214942063,1.08676,1839.5,1839.4,3.2078]
[1746214942458,1.08688,1839.3,1839.2,3.2078]
[1746214942656,1.51526784,1839.3,1839.2,3.2078]
[1746214943051,0.42838784,1839.3,1839.2,4.29473]
[1746214943464,8.5002,1839.6,1839.3,1.08684]
[1746214943665,1.08683,1839.4,1839.2,3.2078]
[1746214943963,1.08682,1839.4,1839.3,1.08682]
[1746214944262,1.08683,1839.4,1839.3,1.08683]
[1746214944565,1.51453732,1839.4,1839.3,1.08683]
[1746214944765,0.42770732,1839.4,1839.3,1.08683]
[1746214945153,3.2078,1839.9,1839.3,8.56369]
[1746214945357,1.08675,1839.6,1839.5,1.08674]
[1746214945857,1.08673,1839.6,1839.5,1.08674]
[1746214946065,1.08676,1839.5,1839.4,1.08678]
[1746214946263,1.08676,1839.5,1839.4,1.6964]
[1746214947859,1.08676,1839.5,1839.4,2.78322]
[1746214948055,1.08676,1839.5,1839.4,1.6964]
[1746214948465,1.08676,1839.5,1839.4,2.78322]
[1746214948665,1.08676,1839.5,1839.4,5.99102]
[1746214949066,1.08676,1839.5,1839.4,1.6964]
[1746214949268,1.08676,1839.5,1839.4,2.78322]
[1746214949768,1.08676,1839.5,1839.4,1.6964]
[1746214950461,1.08657,1839.9,1839.8,1.08654]
[1746214950663,1.08664,1839.8,1839.7,1.08659]
[1746214950867,1.08664,1839.8,1839.7,2.69889]
[1746214951062,1.08664,1839.8,1839.7,1.6123]
[1746214951262,1.08664,1839.8,1839.7,2.69894]